bitfinex/quotes_BTCUSD_20250212
["timestamp","ask_amount","ask_price","bid_price","bid_amount"]
[1739361725385,0.00022387,96317.0,96294.0,0.02490365]
[1739361725588,0.00022387,96317.0,96300.0,0.0952655]
[1739361725792,0.00022387,96317.0,96301.0,0.081]
[1739361730192,0.00022387,96317.0,96307.0,0.0952655]
[1739361730594,0.00022387,96317.0,96308.0,0.02066485]
[1739361730730,0.00022387,96317.0,96309.0,0.0468]
[1739361736725,0.00022387,96317.0,96310.0,0.00103821]
[1739361736930,0.00022387,96317.0,96311.0,0.00103818]
[1739361737150,0.00022387,96317.0,96309.0,0.0468]
[1739361747316,0.00022387,96317.0,96309.0,0.0478]
[1739361752935,0.00022387,96317.0,96309.0,0.0468]
[1739361753335,0.00022387,96317.0,96309.0,0.0498]
[1739361759678,0.00022387,96317.0,96309.0,0.0468]
[1739361759885,0.00022387,96317.0,96309.0,0.0498]
[1739361762614,0.00022387,96317.0,96309.0,0.0468]
[1739361762949,0.00022387,96317.0,96309.0,0.0498]
[1739361763351,0.00022387,96317.0,96309.0,0.0468]
[1739361763682,0.00022387,96317.0,96309.0,0.0508]
[1739361765583,0.15,96339.0,96309.0,0.0508]
[1739361765785,0.10250365,96338.0,96309.0,0.0508]
[1739361766371,0.10250365,96338.0,96309.0,0.0468]
[1739361766575,0.10250365,96338.0,96309.0,0.0508]
[1739361767000,0.10250365,96338.0,96309.0,0.0468]
[1739361768341,0.10250365,96338.0,96309.0,0.0478]
[1739361768871,0.10250365,96338.0,96309.0,0.0468]
[1739361769185,0.10250365,96338.0,96309.0,0.0478]
[1739361769581,0.10250365,96338.0,96309.0,0.0468]
[1739361771386,0.10250365,96338.0,96309.0,0.0498]
[1739361771802,0.10250365,96338.0,96309.0,0.0468]
[1739361772702,0.10250365,96338.0,96309.0,0.0478]
[1739361773004,0.10250365,96338.0,96309.0,0.0468]
[1739361774786,0.10250365,96338.0,96309.0,0.04702365]
[1739361774993,0.10850365,96338.0,96309.0,0.04802365]
[1739361775494,0.10250365,96338.0,96309.0,0.04702365]
[1739361775759,0.10750365,96338.0,96309.0,0.04702365]
[1739361776134,0.10250365,96338.0,96309.0,0.04702365]
[1739361776543,0.10750365,96338.0,96309.0,0.04702365]
[1739361777828,0.10250365,96338.0,96309.0,0.04702365]
[1739361778229,0.10850365,96338.0,96309.0,0.04702365]
[1739361778653,0.10250365,96338.0,96309.0,0.04702365]
[1739361778974,0.10850365,96338.0,96309.0,0.04702365]
[1739361781374,0.10250365,96338.0,96309.0,0.04702365]
[1739361781527,0.11050365,96338.0,96309.0,0.04802365]
[1739361782174,0.10250365,96338.0,96309.0,0.04702365]
[1739361782607,0.11050365,96338.0,96309.0,0.04802365]
[1739361782962,0.11250365,96338.0,96309.0,0.04802365]
[1739361783146,0.11250365,96338.0,96310.0,0.0952655]
[1739361783346,0.11050365,96338.0,96310.0,0.0952655]
[1739361783614,0.11250365,96338.0,96310.0,0.0952655]
[1739361784177,0.10450365,96338.0,96310.0,0.0952655]
[1739361784380,0.10850365,96338.0,96310.0,0.0962655]
[1739361784963,0.002,96338.0,96320.0,0.0952655]
[1739361785163,0.002,96338.0,96328.0,0.0952655]
[1739361785349,0.007,96338.0,96328.0,0.0952655]
[1739361785574,0.007,96338.0,96322.0,0.0468]
[1739361786110,0.002,96338.0,96322.0,0.0468]
[1739361786310,0.0001065,96340.0,96322.0,0.0468]
[1739361786548,0.002,96338.0,96322.0,0.0468]
[1739361787164,0.008,96338.0,96322.0,0.0478]
[1739361787767,0.002,96338.0,96322.0,0.0478]
[1739361787979,0.002,96338.0,96322.0,0.0488]
[1739361788180,0.10250365,96337.0,96322.0,0.002]
[1739361789303,0.10250365,96337.0,96322.0,0.001]
[1739361789739,0.10250365,96337.0,96322.0,0.002]
[1739361790490,0.10250365,96337.0,96322.0,0.001]
[1739361790661,0.10250365,96337.0,96322.0,0.004]
[1739361792458,0.10250365,96337.0,96322.0,0.003]
[1739361792663,0.10250365,96337.0,96322.0,0.005]
[1739361793478,0.10250365,96337.0,96313.0,0.045]
[1739361793683,0.10250365,96337.0,96314.0,0.00499983]
[1739361793896,0.10250365,96337.0,96322.0,0.002]
[1739361794266,0.10250365,96337.0,96322.0,0.006]
[1739361794769,0.0001065,96340.0,96322.0,0.002]
[1739361795176,0.0001065,96340.0,96322.0,0.006]
[1739361795400,0.0001065,96340.0,96322.0,0.00781254]
[1739361795605,0.0001065,96340.0,96322.0,0.00581254]
[1739361796549,0.0001065,96340.0,96322.0,0.00281254]
[1739361796844,0.0001065,96340.0,96322.0,0.00381254]
[1739361802503,0.0001065,96340.0,96323.0,0.0489]
[1739361803807,0.0001065,96340.0,96324.0,0.0782]
[1739361804994,0.0001065,96340.0,96324.0,0.0792]
[1739361806204,0.0001065,96340.0,96324.0,0.0802]
[1739361808005,0.0001065,96340.0,96324.0,0.10253879]
[1739361808837,0.0001065,96340.0,96339.0,0.272]
[1739361809062,0.00022366,96366.0,96340.0,0.15]
[1739361809272,0.00022366,96366.0,96343.0,0.15]
[1739361809667,0.00022366,96366.0,96345.0,0.0764]
[1739361809870,0.00022366,96366.0,96347.0,0.0764]
[1739361810089,0.00022366,96366.0,96348.0,0.0010377]
[1739361810306,0.00022366,96366.0,96350.0,0.15]
[1739361810506,0.00022366,96366.0,96350.0,0.25250365]
[1739361811536,0.00022366,96366.0,96350.0,0.33080365]
[1739361811756,0.00122387,96351.0,96350.0,0.34580365]
[1739361812224,0.00022387,96351.0,96350.0,0.33080365]
[1739361812425,0.00122387,96351.0,96350.0,0.34580365]
[1739361812848,0.00122387,96351.0,96350.0,0.35280365]
[1739361813042,0.00122387,96351.0,96350.0,0.34580365]
[1739361813522,0.00122387,96351.0,96350.0,0.35280365]
[1739361814720,0.00122387,96351.0,96350.0,0.39920365]
[1739361816577,0.00122387,96351.0,96350.0,0.39220365]
[1739361816917,0.00022387,96351.0,96350.0,0.38420365]
[1739361817379,0.00122387,96351.0,96350.0,0.39920365]
[1739361819483,0.00122387,96351.0,96350.0,0.72370365]
[1739361820686,0.00022387,96351.0,96350.0,0.70870365]
[1739361821032,0.00122387,96351.0,96350.0,0.72370365]
[1739361821228,0.00122387,96351.0,96350.0,0.71670365]
[1739361821591,0.00022387,96351.0,96350.0,0.70170365]
[1739361822374,0.00022387,96351.0,96350.0,0.71670365]
[1739361822690,0.00122387,96351.0,96350.0,0.72370365]
[1739361822887,0.00122387,96351.0,96350.0,0.71670365]
[1739361823089,0.00022387,96351.0,96350.0,0.70170365]
[1739361823296,0.00022387,96351.0,96350.0,0.70870365]
[1739361823517,0.00022387,96351.0,96350.0,0.71670365]
[1739361823721,0.00022387,96351.0,96350.0,0.72370365]
[1739361824101,0.00022387,96351.0,96350.0,0.71670365]
[1739361824299,0.00222387,96351.0,96350.0,0.72370365]
[1739361824646,0.00122387,96351.0,96350.0,0.70870365]
[1739361826356,0.00022387,96351.0,96350.0,0.70870365]
[1739361826770,0.00022387,96351.0,96350.0,0.70170365]
[1739361826966,0.00022387,96351.0,96350.0,0.70870365]
[1739361827930,0.00122387,96351.0,96350.0,0.72370365]
[1739361828361,0.00122387,96351.0,96350.0,0.3465]
[1739361828737,0.00122387,96351.0,96350.0,0.3395]
[1739361829145,0.00122387,96351.0,96350.0,0.3465]
[1739361829370,0.00122387,96351.0,96350.0,0.3395]
[1739361829749,0.00122387,96351.0,96350.0,0.3445]
[1739361830083,0.00022387,96351.0,96350.0,0.3295]
[1739361830488,0.00122387,96351.0,96350.0,0.3445]
[1739361830950,0.00022387,96351.0,96350.0,0.3295]
[1739361831365,0.00122387,96351.0,96350.0,0.3405]
[1739361831568,0.00122387,96351.0,96350.0,0.016]
[1739361837301,0.00022366,96366.0,96350.0,0.016]
[1739361837302,0.14501497,96370.0,96350.0,0.016]
[1739361837488,0.10250365,96369.0,96350.0,0.016]
[1739361838129,0.10250365,96369.0,96350.0,0.005]
[1739361838467,0.10250365,96369.0,96343.0,0.00022386]
[1739361838674,0.10350365,96369.0,96343.0,0.00022386]
[1739361839571,0.10250365,96369.0,96343.0,0.00022386]
[1739361839786,0.002,96370.0,96344.0,0.079]
[1739361839992,0.001,96369.0,96344.0,0.079]
[1739361840376,0.003,96369.0,96344.0,0.079]
[1739361840817,0.001,96369.0,96344.0,0.079]
[1739361840989,0.001,96369.0,96345.0,0.0454]
[1739361841195,0.001,96369.0,96347.0,0.08]
[1739361841401,0.001,96370.0,96348.0,0.08]
[1739361841759,0.002,96370.0,96348.0,0.08]
[1739361841960,0.001,96370.0,96348.0,0.08]
[1739361842800,0.02862951,96374.0,96348.0,0.08]
[1739361842977,0.001,96369.0,96348.0,0.08]
[1739361843557,0.001,96370.0,96348.0,0.08]
[1739361843762,0.003,96370.0,96348.0,0.08]
[1739361844164,0.001,96370.0,96348.0,0.08]
[1739361844769,0.001,96369.0,96348.0,0.08]
[1739361845541,0.001,96369.0,96352.0,0.02122229]
[1739361845754,0.001,96369.0,96354.0,0.0497]
[1739361845967,0.02968057,96374.0,96354.0,0.0497]
[1739361846382,0.002,96370.0,96354.0,0.0497]
[1739361846824,0.14501497,96380.0,96354.0,0.0497]
[1739361847004,0.10250365,96379.0,96354.0,0.0497]
[1739361847339,0.007,96374.0,96354.0,0.0497]
[1739361847544,0.007,96374.0,96355.0,0.0771]
[1739361847715,0.002,96374.0,96355.0,0.0771]
[1739361848664,0.10250365,96379.0,96355.0,0.0771]
[1739361849596,0.007,96374.0,96355.0,0.0771]
[1739361849997,0.002,96374.0,96355.0,0.0771]
[1739361850422,0.11350365,96379.0,96355.0,0.0781]
[1739361850621,0.11350365,96379.0,96354.0,0.0028]
[1739361850829,0.10550365,96379.0,96354.0,0.0028]
[1739361851171,0.005,96374.0,96354.0,0.0028]
[1739361851834,0.007,96374.0,96354.0,0.0028]
[1739361852137,0.005,96374.0,96354.0,0.0028]
[1739361852550,0.007,96374.0,96354.0,0.0028]
[1739361853125,0.002,96374.0,96354.0,0.0028]
[1739361853289,0.002,96374.0,96354.0,0.0038]
[1739361853485,0.002,96374.0,96355.0,0.0832]
[1739361854291,0.007,96374.0,96355.0,0.0832]
[1739361854684,0.002,96374.0,96355.0,0.0832]
[1739361855092,0.007,96374.0,96355.0,0.0832]
[1739361855639,0.005,96374.0,96355.0,0.0832]
[1739361855844,0.007,96374.0,96355.0,0.0832]
[1739361856296,0.002,96374.0,96355.0,0.0832]
[1739361856498,0.004,96374.0,96355.0,0.0832]
[1739361856707,0.009,96374.0,96355.0,0.0832]
[1739361857005,0.004,96374.0,96355.0,0.0832]
[1739361857229,0.002,96374.0,96355.0,0.0832]
[1739361857353,0.007,96374.0,96355.0,0.0832]
[1739361859024,0.007,96374.0,96357.0,0.0757]
[1739361859247,0.09514155,96380.0,96357.0,0.0757]
[1739361859445,0.09514155,96380.0,96359.0,0.0757]
[1739361859825,0.005,96374.0,96359.0,0.0757]
[1739361859997,0.09524805,96390.0,96359.0,0.0757]
[1739361860205,0.002,96374.0,96361.0,0.0472]
[1739361860425,0.002,96374.0,96362.0,0.0768]
[1739361860626,0.003,96380.0,96356.0,0.08291831]
[1739361860824,0.003,96380.0,96357.0,0.00103765]
[1739361860984,0.001,96388.0,96357.0,0.1035413]
[1739361861211,0.10250365,96387.0,96359.0,0.001]
[1739361861379,0.002,96374.0,96361.0,0.001]
[1739361862696,0.001,96386.0,96357.0,0.10354129]
[1739361862897,0.002,96380.0,96358.0,0.00103764]
[1739361863103,0.003,96380.0,96358.0,0.00103764]
[1739361863280,0.001,96386.0,96358.0,0.00103764]
[1739361863488,0.001,96386.0,96360.0,0.1275]
[1739361863716,0.001,96374.0,96362.0,0.0792]
[1739361864130,0.001,96386.0,96362.0,0.0792]
[1739361864333,0.001,96389.0,96364.0,0.0813]
[1739361864543,0.001,96386.0,96365.0,0.0485]
[1739361864760,0.001,96386.0,96370.0,0.09514155]
[1739361864999,0.001,96386.0,96366.0,0.0813]
[1739361865637,0.001,96386.0,96368.0,0.0765]
[1739361865842,0.0011065,96390.0,96368.0,0.0765]
[1739361865843,0.0011065,96390.0,96369.0,0.02028394]
[1739361866263,0.001,96386.0,96369.0,0.02028394]
[1739361866696,0.0011065,96390.0,96369.0,0.02028394]
[1739361866898,0.0001065,96390.0,96370.0,0.0774]
[1739361867104,0.0051065,96390.0,96370.0,0.0774]
[1739361867314,0.001,96389.0,96370.0,0.0774]
[1739361867574,0.09514155,96380.0,96370.0,0.0774]
[1739361867782,0.09514155,96380.0,96365.0,0.0485]
[1739361867783,0.001,96379.0,96365.0,0.0485]
[1739361868827,0.001,96384.0,96365.0,0.0485]
[1739361869046,0.001,96383.0,96365.0,0.0485]
[1739361869275,0.001,96386.0,96365.0,0.0485]
[1739361869691,0.001,96386.0,96370.0,0.003]
[1739361870088,0.001,96386.0,96365.0,0.0485]
[1739361870270,0.001,96386.0,96365.0,0.0525]
[1739361870585,0.0001066,96386.0,96365.0,0.0495]
[1739361870828,0.0001066,96386.0,96365.0,0.0485]
[1739361871232,0.0021066,96386.0,96365.0,0.0485]
[1739361872358,0.0011066,96386.0,96365.0,0.0485]
[1739361872671,0.0031066,96386.0,96365.0,0.0485]
[1739361873261,0.0011066,96386.0,96365.0,0.0485]
[1739361873496,0.0021066,96386.0,96365.0,0.0485]
[1739361874182,0.0041066,96386.0,96365.0,0.0485]
[1739361875359,0.0031066,96386.0,96365.0,0.0485]
[1739361875607,0.0011066,96386.0,96365.0,0.0485]
[1739361876006,0.0021066,96386.0,96365.0,0.0485]
[1739361876860,0.0041066,96386.0,96365.0,0.0485]
[1739361877183,0.0031066,96386.0,96365.0,0.0485]
[1739361877390,0.0011066,96386.0,96365.0,0.0485]
[1739361878204,0.0011066,96386.0,96366.0,0.076]
[1739361878815,0.0021066,96386.0,96366.0,0.076]
[1739361879112,0.0031066,96386.0,96366.0,0.076]
[1739361879315,0.0011066,96386.0,96366.0,0.076]
[1739361879910,0.0041066,96386.0,96366.0,0.076]
[1739361880574,0.0011066,96386.0,96366.0,0.076]
[1739361881813,0.0021066,96386.0,96366.0,0.076]
[1739361882229,0.0011066,96386.0,96366.0,0.076]
[1739361882438,0.0021066,96386.0,96366.0,0.076]
[1739361882680,0.0041066,96386.0,96366.0,0.076]
[1739361883079,0.0021066,96386.0,96366.0,0.076]
[1739361883620,0.0031066,96386.0,96366.0,0.076]
[1739361883762,0.0021066,96386.0,96366.0,0.076]
[1739361884815,0.0011066,96386.0,96366.0,0.076]
[1739361885020,0.0021066,96386.0,96366.0,0.076]
[1739361885184,0.0041066,96386.0,96366.0,0.076]
[1739361885385,0.0031066,96386.0,96366.0,0.076]
[1739361885674,0.0011066,96386.0,96366.0,0.076]
[1739361885848,0.07529696,96400.0,96366.0,0.076]
[1739361886072,0.001,96386.0,96366.0,0.076]
[1739361886272,0.002,96386.0,96366.0,0.076]
[1739361886484,0.001,96386.0,96366.0,0.076]
[1739361886703,0.003,96386.0,96366.0,0.076]
[1739361886844,0.002,96386.0,96366.0,0.076]
[1739361887459,0.09450365,96399.0,96366.0,0.076]
[1739361888288,0.001,96386.0,96366.0,0.076]
[1739361888489,0.001,96386.0,96366.0,0.08291831]
[1739361888687,0.09450365,96399.0,96367.0,0.0759]
[1739361888890,0.09850365,96399.0,96367.0,0.0759]
[1739361889071,0.14528614,96399.0,96367.0,0.0759]
[1739361889607,0.13428614,96399.0,96367.0,0.0759]
[1739361889804,0.14128614,96399.0,96367.0,0.0769]
[1739361889967,0.155635,96380.0,96367.0,0.0769]
[1739361890367,0.14493826,96380.0,96367.0,0.0769]
[1739361890576,0.155653,96368.0,96367.0,0.001]
[1739361891226,0.155659,96365.0,96361.0,0.07612386]
[1739361892999,0.155659,96365.0,96361.0,0.07912386]
[1739361894497,0.155659,96365.0,96361.0,0.07712386]
[1739361894850,0.156659,96365.0,96361.0,0.08012386]
[1739361895048,0.156659,96365.0,96361.0,0.07912386]
[1739361895454,0.156659,96365.0,96354.0,0.00394772]
[1739361896442,0.155659,96365.0,96354.0,0.00394772]
[1739361897066,0.20754,96367.0,96354.0,0.00394772]
[1739361897269,0.155656,96366.0,96354.0,0.00394772]
[1739361898543,0.156656,96366.0,96355.0,0.0818]
[1739361899436,0.155656,96366.0,96355.0,0.0818]
[1739361899847,0.156656,96366.0,96355.0,0.0818]
[1739361900253,0.155666,96361.0,96350.0,0.0813]
[1739361900461,0.001,96366.0,96348.0,0.00022365]
[1739361900462,0.09514286,96360.0,96348.0,0.00022365]
[1739361900669,0.155674,96355.0,96351.0,0.00504726]
[1739361900873,0.19028572,96360.0,96348.0,0.00022365]
[1739361900874,0.19028572,96360.0,96349.0,0.00505161]
[1739361901082,0.155674,96355.0,96348.0,0.00022365]
[1739361901289,0.155674,96355.0,96350.0,0.00504944]
[1739361901493,0.155674,96355.0,96350.0,0.003]
[1739361901694,0.155674,96355.0,96350.0,0.004]
[1739361901908,0.35259946,96360.0,96350.0,0.001]
[1739361901909,0.14504446,96360.0,96350.0,0.001]
[1739361902115,0.15568,96351.0,96350.0,0.001]
[1739361902539,0.207571,96353.0,96349.0,0.004]
[1739361902744,0.155682,96350.0,96349.0,0.004]
[1739361903440,0.207571,96353.0,96348.0,0.00022365]
[1739361903728,0.155684,96349.0,96348.0,0.00022365]
[1739361905243,0.156684,96349.0,96348.0,0.00022365]
[1739361905608,0.33588765,96349.0,96348.0,0.00022365]
[1739361906458,0.33788765,96349.0,96348.0,0.00022365]
[1739361906635,0.34088765,96349.0,96348.0,0.00022365]
[1739361907481,0.37539516,96349.0,96348.0,0.00022365]
[1739361907837,0.37139516,96349.0,96348.0,0.00022365]
[1739361908401,0.37239516,96349.0,96348.0,0.00022365]
[1739361912833,0.37139516,96349.0,96348.0,0.00022365]
[1739361913241,0.19119151,96349.0,96348.0,0.00022365]
[1739361914148,0.19219151,96349.0,96348.0,0.00022365]
[1739361915786,0.29469516,96349.0,96348.0,0.00022365]
[1739361916022,0.34279516,96349.0,96348.0,0.00022365]
[1739361917628,0.34179516,96349.0,96348.0,0.00022365]
[1739361917837,0.34879516,96349.0,96348.0,0.00122365]
[1739361918330,0.36479516,96349.0,96348.0,0.00022365]
[1739361918678,0.37479516,96349.0,96348.0,0.00122365]
[1739361923393,0.35179516,96349.0,96348.0,0.00122365]
[1739361924377,0.30369516,96349.0,96348.0,0.00122365]
[1739361925403,0.14801116,96349.0,96325.0,0.00914751]
[1739361925612,0.155708,96334.0,96325.0,0.00914751]
[1739361926633,0.155708,96334.0,96325.0,0.01014751]
[1739361927063,0.155708,96334.0,96325.0,0.00914751]
[1739361927472,0.156708,96334.0,96325.0,0.01514751]
[1739361928556,0.156708,96334.0,96326.0,0.0756]
[1739361930444,0.155711,96332.0,96326.0,0.0776]
[1739361930656,0.001,96334.0,96326.0,0.0816]
[1739361930841,0.155711,96332.0,96326.0,0.0816]
[1739361931366,0.155711,96332.0,96326.0,0.0756]
[1739361931570,0.15571,96333.0,96326.0,0.0756]
[1739361931719,0.001,96332.0,96326.0,0.0806]
[1739361932063,0.001,96332.0,96326.0,0.0826]
[1739361932297,0.001,96332.0,96326.0,0.08282386]
[1739361933445,0.15571,96333.0,96326.0,0.07782386]
[1739361933650,0.001,96333.0,96326.0,0.08282386]
[1739361933806,0.155712,96332.0,96327.0,0.00289072]
[1739361934526,0.156712,96332.0,96326.0,0.08282386]
[1739361934733,0.156712,96332.0,96326.0,0.08082386]
[1739361934928,0.155712,96332.0,96326.0,0.07582386]
[1739361935280,0.156712,96332.0,96327.0,0.005]
[1739361936001,0.156712,96332.0,96327.0,0.007]
[1739361936407,0.155712,96332.0,96327.0,0.002]
[1739361936659,0.155712,96332.0,96326.0,0.07582386]
[1739361936865,0.156712,96332.0,96326.0,0.08082386]
[1739361937105,0.156712,96332.0,96326.0,0.08282386]
[1739361937314,0.001,96332.0,96326.0,0.08082386]
[1739361937503,0.155705,96336.0,96326.0,0.07582386]
[1739361937711,0.001,96332.0,96327.0,0.0098917]
[1739361937924,0.001,96332.0,96327.0,0.0078917]
[1739361938306,0.155705,96336.0,96327.0,0.0028917]
[1739361938471,0.001,96332.0,96327.0,0.0028917]
[1739361940238,0.155707,96335.0,96327.0,0.0028917]
[1739361940444,0.155707,96335.0,96327.0,0.0048917]
[1739361941033,0.001,96332.0,96327.0,0.007]
[1739361941240,0.001,96332.0,96328.0,0.00289306]
[1739361941940,0.155707,96335.0,96328.0,0.00289306]
[1739361942343,0.155707,96335.0,96327.0,0.004]
[1739361942730,0.155707,96335.0,96327.0,0.003]
[1739361943175,0.155707,96335.0,96328.0,0.002]
[1739361943429,0.155707,96335.0,96327.0,0.003]
[1739361943730,0.155707,96335.0,96327.0,0.004]
[1739361944113,0.155707,96335.0,96327.0,0.001]
[1739361944440,0.001,96332.0,96328.0,0.005]
[1739361944859,0.1558136,96335.0,96329.0,0.00289507]
[1739361945149,0.1558136,96335.0,96327.0,0.001]
[1739361945366,0.1558136,96335.0,96327.0,0.004]
[1739361945709,0.1558136,96335.0,96327.0,0.001]
[1739361945893,0.1558136,96335.0,96329.0,0.003]
[1739361946878,0.155708,96334.0,96329.0,0.003]
[1739361947282,0.155708,96334.0,96326.0,0.07582386]
[1739361947501,0.155708,96334.0,96330.0,0.002897]
[1739361947706,0.155708,96334.0,96329.0,0.001]
[1739361948527,0.0346956,96339.0,96329.0,0.001]
[1739361948725,0.155707,96335.0,96329.0,0.001]
[1739361948936,0.001,96334.0,96329.0,0.004]
[1739361949141,0.001,96334.0,96330.0,0.00884855]
[1739361950765,0.001,96334.0,96330.0,0.002]
[1739361950976,0.155707,96335.0,96330.0,0.002]
[1739361951891,0.155707,96335.0,96326.0,0.07582386]
[1739361952188,0.155707,96335.0,96330.0,0.001]
[1739361952798,0.155707,96335.0,96330.0,0.004]
[1739361952997,0.155707,96335.0,96330.0,0.003]
[1739361953418,0.155707,96335.0,96330.0,0.004]
[1739361953935,0.155707,96335.0,96330.0,0.005]
[1739361954090,0.155707,96335.0,96330.0,0.002]
[1739361954876,0.155707,96335.0,96330.0,0.005]
[1739361955085,0.155707,96335.0,96330.0,0.008]
[1739361956993,0.1558136,96335.0,96330.0,0.008]
[1739361957713,0.155713,96331.0,96330.0,0.008]
[1739361957921,0.33931665,96331.0,96330.0,0.008]
[1739361958127,0.38521665,96331.0,96330.0,0.008]
[1739361958328,0.46527147,96331.0,96330.0,0.008]
[1739361958512,0.46527147,96331.0,96330.0,0.002]
[1739361958688,0.155719,96327.0,96326.0,0.00022386]
[1739361958889,0.25822265,96327.0,96326.0,0.00022386]
[1739361960093,0.30025531,96327.0,96326.0,0.00022386]
[1739361960659,0.30325531,96327.0,96326.0,0.00022386]
[1739361961364,0.31025531,96327.0,96326.0,0.00122386]
[1739361962531,0.30725531,96327.0,96326.0,0.00122386]
[1739361962736,0.31125531,96327.0,96326.0,0.00122386]
[1739361963381,0.31425531,96327.0,96326.0,0.00122386]
[1739361966572,0.21175166,96327.0,96326.0,0.00122386]
[1739361971957,0.59035531,96327.0,96326.0,0.00122386]
[1739361972161,0.64921564,96327.0,96326.0,0.00122386]
[1739361972775,0.67221564,96327.0,96326.0,0.00122386]
[1739361973784,0.61335531,96327.0,96326.0,0.00122386]
[1739361974019,0.94175531,96327.0,96326.0,0.00122386]
[1739361974369,0.96204311,96327.0,96326.0,0.00122386]
[1739361977038,0.93904311,96327.0,96326.0,0.00122386]
[1739361978060,0.91875531,96327.0,96326.0,0.00122386]
[1739361985807,0.83775531,96327.0,96326.0,0.00122386]
[1739361990559,0.83775531,96327.0,96322.0,0.00022365]
[1739361990560,0.155752,96307.0,96303.0,0.00537116]
[1739361991365,0.53203631,96327.0,96303.0,0.00537116]
[1739361991366,0.155747,96310.0,96303.0,0.00537116]
[1739361992193,0.001,96307.0,96303.0,0.01337116]
[1739361992802,0.155748,96309.0,96303.0,0.00537116]
[1739361993387,0.155748,96309.0,96303.0,0.01137116]
[1739361993567,0.155748,96309.0,96304.0,0.0813]
[1739361993998,0.155748,96309.0,96304.0,0.08425366]
[1739361994365,0.04207516,96313.0,96304.0,0.08425366]
[1739361994563,0.15575,96308.0,96304.0,0.0813]
[1739361994762,0.15575,96308.0,96305.0,0.00295507]
[1739361995308,0.207639,96321.0,96305.0,0.00295507]
[1739361995464,0.155737,96316.0,96305.0,0.00295507]
[1739361995670,0.155737,96316.0,96304.0,0.0843]
[1739361995892,0.207639,96321.0,96304.0,0.0813]
[1739361996094,0.155739,96315.0,96305.0,0.00295412]
[1739361996274,0.001,96308.0,96305.0,0.00995412]
[1739361996813,0.15574,96314.0,96305.0,0.00995412]
[1739361997228,0.09525021,96330.0,96305.0,0.00995412]
[1739361997431,0.15574,96314.0,96305.0,0.007]
[1739361997642,0.207648,96317.0,96305.0,0.007]
[1739361997643,0.155739,96315.0,96306.0,0.00295159]
[1739361997849,0.155739,96315.0,96305.0,0.007]
[1739361998046,0.207648,96317.0,96305.0,0.007]
[1739361998259,0.155737,96316.0,96305.0,0.007]
[1739361998628,0.155737,96316.0,96304.0,0.0813]
[1739361999699,0.155737,96316.0,96304.0,0.0823]
[1739362001103,0.155737,96316.0,96304.0,0.0813]
[1739362001348,0.155737,96316.0,96304.0,0.0833]
[1739362001543,0.207643,96320.0,96304.0,0.0833]
[1739362001833,0.155736,96317.0,96304.0,0.0833]
[1739362002073,0.155736,96317.0,96304.0,0.0813]
[1739362002792,0.155736,96317.0,96304.0,0.0833]
[1739362002998,0.155736,96317.0,96305.0,0.00295184]
[1739362003172,0.155736,96317.0,96304.0,0.0833]
[1739362003596,0.155736,96317.0,96304.0,0.0813]
[1739362004438,0.155736,96317.0,96304.0,0.0823]
[1739362004647,0.155737,96316.0,96304.0,0.0823]
[1739362004846,0.155737,96316.0,96305.0,0.00295184]
[1739362006519,0.155737,96316.0,96305.0,0.00495184]
[1739362007054,0.155737,96316.0,96305.0,0.002]
[1739362007476,0.155737,96316.0,96304.0,0.0813]
[1739362007965,0.155737,96316.0,96305.0,0.0049524]
[1739362008108,0.155737,96316.0,96305.0,0.002]
[1739362008333,0.155737,96316.0,96304.0,0.0813]
[1739362008717,0.155737,96316.0,96305.0,0.002]
[1739362009142,0.155737,96316.0,96306.0,0.00295192]
[1739362009345,0.155737,96316.0,96304.0,0.0813]
[1739362009526,0.155737,96316.0,96305.0,0.00295113]
[1739362009724,0.207645,96319.0,96305.0,0.00295113]
[1739362009925,0.155735,96318.0,96305.0,0.00398941]
[1739362010202,0.155735,96318.0,96305.0,0.00295113]
[1739362010596,0.155735,96318.0,96306.0,0.00265681]
[1739362010964,0.207645,96319.0,96304.0,0.002]
[1739362011164,0.155736,96317.0,96304.0,0.10250365]
[1739362011372,0.155736,96317.0,96305.0,0.00265602]
[1739362012135,0.08291831,96325.0,96305.0,0.00265602]
[1739362012136,0.207645,96318.0,96305.0,0.00265602]
[1739362012559,0.207645,96318.0,96304.0,0.10250365]
[1739362012970,0.155735,96317.0,96304.0,0.10250365]
[1739362013719,0.155735,96317.0,96305.0,0.00600602]
[1739362013919,0.155735,96317.0,96305.0,0.00394933]
[1739362014170,0.155735,96317.0,96305.0,0.001]
[1739362014392,0.155735,96317.0,96304.0,0.10250365]
[1739362014844,0.155737,96316.0,96305.0,0.00895535]
[1739362015629,0.15574,96314.0,96306.0,0.00805776]
[1739362015754,0.15574,96314.0,96293.0,0.10250365]
[1739362015957,0.15574,96314.0,96294.0,0.00807417]
[1739362016157,0.155747,96310.0,96295.0,0.1229]
[1739362016366,0.155753,96307.0,96294.0,0.00807417]
[1739362016572,0.155755,96305.0,96294.0,0.00807417]
[1739362016799,0.0010383,96304.0,96284.0,0.15]
[1739362017009,0.0010383,96304.0,96286.0,0.15]
[1739362017250,0.09525021,96300.0,96287.0,0.10250365]
[1739362017450,0.09525021,96300.0,96287.0,0.10704699]
[1739362017629,0.155758,96303.0,96287.0,0.10704699]
[1739362018271,0.155758,96303.0,96294.0,0.00022386]
[1739362019355,0.156758,96303.0,96294.0,0.00922386]
[1739362019796,0.001,96303.0,96294.0,0.00922386]
[1739362021384,0.155756,96304.0,96294.0,0.00022386]
[1739362021610,0.001,96303.0,96294.0,0.00922386]
[1739362021966,0.001,96303.0,96294.0,0.01122386]
[1739362022171,0.155756,96304.0,96294.0,0.00222386]
[1739362022468,0.001,96303.0,96294.0,0.00622386]
[1739362022648,0.001,96303.0,96295.0,0.10250365]